fUST/lending_fUST_20250111
["ID","MTS","AMOUNT","RATE_DAILY","PERIOD"]
[348529272,1736605661587,-500.0,0.00021917,3]
[348529273,1736605661610,-500.0,0.00021917,3]
[348529274,1736605661634,-531.79886778,0.00021917,3]
[348529275,1736605661658,-500.0,0.00021917,3]
[348529276,1736605661680,-504.3225967,0.00021917,3]
[348529277,1736605661706,-500.0,0.00021917,3]
[348529278,1736605661731,-500.0,0.00021917,3]
[348529279,1736605661755,-500.0,0.00021917,3]
[348529280,1736605661779,-500.0,0.00021917,3]
[348529281,1736605661801,-557.85,0.00021917,3]
[348529282,1736605661824,-500.0,0.00021917,3]
[348529283,1736605661847,-500.0,0.00021917,3]
[348529284,1736605661874,-500.0,0.00021917,3]
[348529285,1736605661897,-534.8472717,0.00021917,3]
[348529286,1736605661922,-500.0,0.00021917,3]
[348529287,1736605661946,-1509.71504599,0.00021917,2]
[348529288,1736605661970,-500.0,0.00021917,3]
[348529289,1736605661992,-500.0,0.00021917,3]
[348529290,1736605662016,-500.0,0.00021917,3]
[348529291,1736605662039,-500.0,0.00021917,3]
[348529292,1736605662063,-500.0,0.00021917,3]
[348529293,1736605662085,-500.0,0.00021917,3]
[348529294,1736605662107,-500.0,0.00021917,3]
[348529295,1736605662129,-500.0,0.00021917,3]
[348529296,1736605662151,-500.0,0.00021917,3]
[348529297,1736605662172,-506.60141846,0.00021917,3]
[348529298,1736605662196,-500.0,0.00021917,3]
[348529299,1736605662218,-500.0,0.00021917,3]
[348529300,1736605662240,-500.0,0.00021917,3]
[348529301,1736605662263,-500.0,0.00021917,3]
[348529302,1736605662283,-500.0,0.00021917,2]
[348529303,1736605662304,-500.0,0.00021917,3]
[348529304,1736605662327,-1072.83,0.00021917,3]
[348529305,1736605662348,-500.0,0.00021917,3]
[348529306,1736605662371,-1175.26,0.00021917,3]
[348529307,1736605662394,-500.0,0.00021917,3]
[348529308,1736605662415,-500.0,0.00021917,3]
[348529309,1736605662438,-500.0,0.00021917,3]
[348529310,1736605662459,-500.0,0.00021917,3]
[348529311,1736605662482,-500.0,0.00021917,3]
[348529312,1736605662504,-500.0,0.00021917,3]
[348529313,1736605662527,-500.0,0.00021917,3]
[348529314,1736605662549,-500.0,0.00021917,3]
[348529315,1736605662572,-503.64768704,0.00021917,3]
[348529316,1736605662596,-1198.67,0.00021917,3]
[348529317,1736605662618,-500.0,0.00021917,3]
[348529318,1736605662645,-500.0,0.00021917,3]
[348529319,1736605662666,-500.0,0.00021917,3]
[348529320,1736605662687,-151.16454337,0.00021917,3]
[348529321,1736605662708,-150.18,0.00021917,3]
[348529322,1736605662729,-952.93039928,0.00021917,3]
[348529323,1736605662751,-150.18,0.00021917,2]
[348529324,1736605662772,-500.0,0.00021973,2]
[348529325,1736605662794,-500.0,0.00021973,2]
[348529326,1736605662817,-287.76226702,0.00021973,2]
[348529327,1736605662837,-494.83474746,0.00021973,2]
[348529328,1736605662859,-504.96154488,0.00021973,2]
[348529329,1736605662880,-166.996,0.00021973,2]
[348529330,1736605662903,-159.0,0.00021973,2]
[348529331,1736605662924,-169.0,0.00021973,2]
[348529332,1736605662946,-151.0,0.00021973,2]
[348529333,1736605662967,-500.0,0.00021973,2]
[348529334,1736605662988,-151.0,0.00021973,7]
[348529335,1736605663010,-1305.57905965,0.00022,2]
[348529340,1736605724785,4955.9498344,0.00019,2]
[348529356,1736605807145,7929.1910509,0.00018256,2]
[348529420,1736605838161,-300.0,0.00020999,2]
[348529422,1736605838170,-13587.02632596,0.00021,2]
[348529424,1736605838180,-156.98153929,0.0002178,2]
[348529426,1736605838190,-500.0,0.00021917,3]
[348529428,1736605838199,-500.0,0.00021917,3]
[348529430,1736605838208,-151.0,0.00021917,2]
[348529432,1736605838217,-151.0,0.00021917,2]
[348529434,1736605838226,-545.94,0.00021917,3]
[348529436,1736605838235,-151.0,0.00021917,2]
[348529438,1736605838244,-151.0,0.00021917,2]
[348529440,1736605838254,-683.46,0.00021917,3]
[348529442,1736605838263,-2636.81,0.00021917,3]
[348529444,1736605838272,-500.0,0.00021917,3]
[348529446,1736605838281,-151.0,0.00021917,2]
[348529449,1736605838290,-219.483715,0.00021917,2]
[348529451,1736605838300,-500.0,0.00021917,3]
[348529453,1736605838309,-500.0,0.00021917,3]
[348529456,1736605838318,-1097.88,0.00021917,3]
[348529458,1736605838327,-500.0,0.00021917,3]
[348529460,1736605838336,-1876.67,0.00021917,3]
[348529462,1736605838346,-500.0,0.00021917,3]
[348529464,1736605838355,-500.0,0.00021917,3]
[348529466,1736605838364,-500.0,0.00021917,3]
[348529468,1736605838373,-500.0,0.00021917,3]
[348529470,1736605838382,-500.0,0.00021917,3]
[348529472,1736605838391,-500.0,0.00021917,3]
[348529474,1736605838400,-492.61581451,0.00021917,3]
[348529476,1736605838409,-500.0,0.00021917,3]
[348529478,1736605838418,-500.0,0.00021917,3]
[348529480,1736605838427,-388.61912529,0.00021917,3]
[348529482,1736605838437,-500.0,0.00021917,3]
[348529484,1736605838446,-500.0,0.00021917,3]
[348529486,1736605838455,-500.0,0.00021917,3]
[348529488,1736605838464,-500.0,0.00021917,3]
[348529490,1736605838473,-502.47832186,0.00021917,3]
[348529492,1736605838482,-500.0,0.00021917,3]
[348529494,1736605838491,-505.20994744,0.00021917,3]
[348529496,1736605838501,-500.0,0.00021917,3]
[348529498,1736605838510,-500.0,0.00021917,2]
[348529500,1736605838519,-500.0,0.00021917,3]
[348529502,1736605838528,-763.56,0.00021917,3]
[348529504,1736605838537,-513.56708994,0.00021917,3]
[348529506,1736605838546,-500.0,0.00021917,3]
[348529508,1736605838556,-500.0,0.00021917,3]
[348529510,1736605838565,-567.18,0.00021917,3]
[348529512,1736605838574,-984.65,0.00021917,3]
[348529514,1736605838583,-816.94,0.00021917,3]
[348529516,1736605838593,-500.0,0.00021917,3]
[348529518,1736605838602,-500.0,0.00021917,3]
[348529520,1736605838612,-500.0,0.00021917,3]
[348529522,1736605838622,-500.0,0.00021917,3]
[348529524,1736605838631,-500.0,0.00021917,3]
[348529526,1736605838640,-500.0,0.00021917,3]
[348529528,1736605838649,-500.0,0.00021917,3]
[348529542,1736605838770,-500.0,0.00021917,3]
[348529545,1736605838785,-500.0,0.00021917,3]
[348529547,1736605838794,-505.43522224,0.00021917,3]
[348529549,1736605838803,-500.0,0.00021917,3]
[348529551,1736605838812,-1126.29,0.00021917,3]
[348529553,1736605838821,-500.0,0.00021917,3]
[348529555,1736605838830,-500.0,0.00021917,3]
[348529557,1736605838840,-500.0,0.00021917,3]
[348529559,1736605838852,-1587.99,0.00021917,3]
[348529561,1736605838861,-3545.25,0.00021917,3]
[348529563,1736605838870,-689.7,0.00021917,3]
[348529565,1736605838879,-500.0,0.00021917,3]
[348529567,1736605838889,-501.54170248,0.00021917,3]
[348529569,1736605838899,-500.0,0.00021917,3]
[348529571,1736605838908,-500.0,0.00021917,3]
[348529573,1736605838918,-1000.0,0.00021917,3]
[348529575,1736605838927,-1187.54,0.00021917,3]
[348529577,1736605838936,-500.0,0.00021917,3]
[348529579,1736605838945,-505.82,0.00021917,3]
[348529581,1736605838959,-500.0,0.00021917,3]
[348529583,1736605838968,-500.0,0.00021917,3]
[348529585,1736605838977,-512.75450292,0.00021917,3]
[348529587,1736605838986,-502.73952891,0.00021917,3]
[348529589,1736605838997,-151.0,0.00021917,2]
[348529591,1736605839006,-151.0,0.00021917,2]
[348529592,1736605839015,-151.0,0.00021917,2]
[348529594,1736605839024,-151.0,0.00021917,2]
[348529596,1736605839034,-500.0,0.00021917,3]
[348529597,1736605839043,-726.78,0.00021917,3]
[348529598,1736605839053,-456.56661171,0.00021917,3]
[348529600,1736605839062,-1012.3,0.00021917,3]
[348529601,1736605839071,-1117.09,0.00021917,3]
[348529603,1736605839081,-500.0,0.00021917,3]
[348529604,1736605839090,-500.0,0.00021917,3]
[348529606,1736605839100,-500.0,0.00021917,3]
[348529607,1736605839110,-500.0,0.00021917,3]
[348529608,1736605839119,-500.0,0.00021917,3]
[348529609,1736605839128,-500.0,0.00021917,3]
[348529610,1736605839137,-500.0,0.00021917,3]
[348529611,1736605839146,-500.0,0.00021917,3]
[348529612,1736605839156,-500.0,0.00021917,3]
[348529613,1736605839165,-500.0,0.00021917,3]
[348529614,1736605839174,-500.0,0.00021917,3]
[348529615,1736605839184,-500.0,0.00021917,3]
[348529616,1736605839194,-218.69938817,0.00021917,2]
[348529617,1736605839203,-500.0,0.00021917,3]
[348529618,1736605839212,-500.0,0.00021917,3]
[348529619,1736605839222,-1079.94,0.00021917,3]
[348529620,1736605839231,-500.0,0.00021917,3]
[348529621,1736605839240,-486.37164515,0.00021917,3]
[348529622,1736605839250,-500.0,0.00021917,3]
[348529623,1736605839261,-501.62925538,0.00021917,3]
[348529624,1736605839270,-1028.92,0.00021917,3]
[348529625,1736605839279,-500.0,0.00021917,3]
[348529626,1736605839289,-181.81290131,0.00021917,3]
[348529627,1736605839299,-529.85,0.00021917,3]
[348529628,1736605839310,-500.0,0.00021917,3]
[348529629,1736605839320,-500.0,0.00021917,3]
[348529630,1736605839330,-500.0,0.00021917,3]
[348529631,1736605839339,-1913.16,0.00021917,3]
[348529632,1736605839348,-4573.25,0.00021999,3]
[348529633,1736605839357,-500.0,0.00021999,2]
[348529634,1736605839366,-500.0,0.00021999,2]
[348529635,1736605839375,-344.69500653,0.00021999,2]
[348529636,1736605839384,-500.0,0.00021999,3]
[348529637,1736605839393,-500.0,0.00021999,3]
[348529638,1736605839403,-1884.79,0.00021999,3]
[348529639,1736605839412,-463.15765294,0.00021999,3]
[348529640,1736605839421,-500.0,0.00021999,3]
[348529641,1736605839430,-1157.47,0.00021999,3]
[348529642,1736605839439,-1059.08,0.00021999,3]
[348529643,1736605839449,-500.0,0.00021999,3]
[348529644,1736605839459,-500.0,0.00021999,3]
[348529645,1736605839468,-500.0,0.00021999,3]
[348529646,1736605839478,-500.0,0.00021999,2]
[348529647,1736605839487,-500.0,0.00021999,3]
[348529648,1736605839496,-503.01129463,0.00021999,3]
[348529649,1736605839506,-500.0,0.00021999,3]
[348529650,1736605839515,-500.0,0.00021999,3]
[348529651,1736605839525,-160354.97677668,0.00022,2]
[348529652,1736605839543,-432.84664257,0.00022,2]
[348529653,1736605839554,-74508.39915744,0.00022,2]
[348529666,1736605841151,-5182.67041432,0.00022,2]
[348529667,1736605841168,-248816.55869284,0.00022,2]
[348529668,1736605841178,-179556.22467175,0.00022,2]
[348529669,1736605841188,-30555.41628924,0.00022,31]
[348529670,1736605841198,-200.0,0.00022,2]
[348529671,1736605841208,-151.0,0.00022,7]
[348529672,1736605841217,-187.864576,0.00022,7]
[348529673,1736605841228,-187.864576,0.00022,7]
[348529674,1736605841237,-151.0,0.00022,7]
[348529675,1736605841247,-1240.971594,0.00022,7]
[348529676,1736605841257,-1240.971585,0.00022,7]
[348529677,1736605841267,-4418.2,0.00022,14]
[348529678,1736605841276,-11787.6,0.00022,14]
[348529679,1736605841285,-12613.11,0.00022,2]
[348529680,1736605841294,-500.0,0.00022,2]
[348529681,1736605841303,-151.0,0.00022,7]
[348529682,1736605841312,-306.6087742,0.00022,2]
[348529683,1736605841321,-307.5539381,0.00022,2]
[348529684,1736605841331,-161.3333495,0.00022,2]
[348529685,1736605841340,-259.5259276,0.00022,2]
[348529686,1736605841349,-153.0,0.00022,2]
[348529687,1736605841358,-214.8242705,0.00022,2]
[348529688,1736605841367,-214.8242705,0.00022,2]
[348529689,1736605841376,-153.0,0.00022,2]
[348529690,1736605841386,-214.8242705,0.00022,2]
[348529691,1736605841395,-153.0,0.00022,2]
[348529692,1736605841404,-484.172523,0.00022,7]
[348529693,1736605841414,-153.0,0.00022,2]
[348529694,1736605841423,-484.172523,0.00022,7]
[348529695,1736605841432,-151.0,0.00022,7]
[348529696,1736605841441,-185.626641,0.00022,7]
[348529697,1736605841450,-151.0,0.00022,7]
[348529698,1736605841460,-151.0,0.00022,2]
[348529699,1736605841469,-151.0,0.00022,2]
[348529700,1736605841479,-151.0,0.00022,7]
[348529701,1736605841489,-151.0,0.00022,7]
[348529702,1736605841498,-151.0,0.00022061,7]
[348529703,1736605841507,-165.75169,0.00022091,7]
[348529704,1736605841517,-150.18,0.00022091,7]
[348529705,1736605841526,-500.0,0.00022091,2]
[348529706,1736605841535,-150.18,0.00022091,7]
[348529707,1736605841545,-150.18,0.00022091,2]
[348529708,1736605841554,-150.18,0.00022091,7]
[348529709,1736605841563,-8584.46591514,0.00022112,2]
[348529710,1736605841573,-5000.0,0.00022112,2]
[348529711,1736605841581,-5000.0,0.00022112,2]
[348529712,1736605841590,-5000.0,0.00022112,2]
[348529713,1736605841601,-5000.0,0.00022112,2]
[348529714,1736605841610,-484.172523,0.00022112,7]
[348529715,1736605841619,-484.172523,0.00022112,7]
[348529716,1736605841629,-151.0,0.00022112,7]
[348529717,1736605841638,-1200.0,0.00022171,2]
[348529718,1736605841647,-500.0,0.00022173,2]
[348529719,1736605841656,-251.827136,0.00022173,7]
[348529720,1736605841665,-187.864576,0.00022173,7]
[348529721,1736605841674,-187.86457,0.00022173,7]
[348529722,1736605841683,-150.18,0.00022191,3]
[348529723,1736605841693,-500.0,0.00022191,3]
[348529724,1736605841702,-150.18,0.00022191,3]
[348529725,1736605841712,-37477.3909941,0.00022191,2]
[348529726,1736605841721,-500.0,0.00022191,3]
[348529727,1736605841731,-552.59964762,0.00022191,3]
[348529728,1736605841741,-500.0,0.00022191,3]
[348529729,1736605841750,-500.0,0.00022191,3]
[348529730,1736605841760,-500.0,0.00022191,3]
[348529731,1736605841771,-503.12443125,0.00022191,3]
[348529732,1736605841780,-500.0,0.00022191,3]
[348529733,1736605841790,-500.0,0.00022191,3]
[348529734,1736605841799,-501.66489959,0.00022191,3]
[348529735,1736605841808,-510.86707945,0.00022191,3]
[348529736,1736605841818,-500.0,0.00022191,3]
[348529737,1736605841827,-500.0,0.00022191,3]
[348529738,1736605841836,-501.62144641,0.00022191,3]
[348529739,1736605841846,-500.0,0.00022191,3]
[348529740,1736605841855,-501.34144771,0.00022191,3]
[348529741,1736605841865,-500.0,0.00022191,3]
[348529742,1736605841874,-213.95214898,0.00022191,3]
[348529743,1736605841883,-502.88672486,0.00022191,3]
[348529744,1736605841893,-500.0,0.00022191,3]
[348529745,1736605841902,-500.0,0.00022191,14]
[348529746,1736605841911,-500.0,0.00022191,3]
[348529747,1736605841921,-500.0,0.00022191,3]
[348529748,1736605841930,-500.0,0.00022191,3]
[348529749,1736605841940,-500.0,0.00022191,2]
[348529750,1736605841950,-500.0,0.00022191,3]
[348529751,1736605841963,-500.0,0.00022191,3]
[348529752,1736605841973,-501.11277703,0.00022191,3]
[348529753,1736605841983,-500.0,0.00022191,3]
[348529754,1736605841992,-500.0,0.00022191,3]
[348529755,1736605842002,-500.0,0.00022191,3]
[348529756,1736605842012,-502.55810365,0.00022191,3]
[348529757,1736605842022,-597.77062871,0.00022191,3]
[348529758,1736605842031,-500.0,0.00022191,3]
[348529759,1736605842040,-500.0,0.00022191,3]
[348529760,1736605842051,-505.01674283,0.00022191,3]
[348529761,1736605842060,-500.0,0.00022191,3]
[348529762,1736605842070,-500.0,0.00022191,3]
[348529763,1736605842080,-500.0,0.00022191,3]
[348529764,1736605842089,-224.29944625,0.00022191,3]
[348529765,1736605842099,-500.0,0.00022191,3]
[348529766,1736605842109,-505.31424948,0.00022191,3]
[348529767,1736605842119,-502.82924439,0.00022191,3]
[348529768,1736605842231,-500.0,0.00022191,3]
[348529769,1736605842242,-500.0,0.00022191,3]
[348529770,1736605842251,-500.0,0.00022191,3]
[348529771,1736605842262,-500.0,0.00022191,3]
[348529772,1736605842271,-500.0,0.00022191,3]
[348529773,1736605842280,-503.73279801,0.00022191,3]
[348529774,1736605842290,-500.0,0.00022191,3]
[348529775,1736605842299,-500.0,0.00022191,3]
[348529776,1736605842308,-500.0,0.00022191,3]
[348529777,1736605842317,-500.0,0.00022191,3]
[348529778,1736605842326,-509.81683209,0.00022191,3]
[348529779,1736605842336,-500.0,0.00022191,3]
[348529780,1736605842345,-501.75682873,0.00022191,3]
[348529781,1736605842354,-500.0,0.00022191,3]
[348529782,1736605842364,-500.0,0.00022191,3]
[348529783,1736605842373,-178.5799104,0.00022191,3]
[348529784,1736605842382,-500.0,0.00022191,3]
[348529785,1736605842392,-500.0,0.00022191,3]
[348529786,1736605842401,-512.02681184,0.00022191,3]
[348529787,1736605842411,-500.0,0.00022191,3]
[348529788,1736605842422,-500.89823148,0.00022191,3]
[348529789,1736605842431,-500.0,0.00022191,3]
[348529790,1736605842441,-500.0,0.00022191,3]
[348529791,1736605842450,-500.0,0.00022191,3]
[348529792,1736605842459,-503.30502933,0.00022191,3]
[348529793,1736605842468,-500.0,0.00022191,3]
[348529794,1736605842478,-500.0,0.00022191,3]
[348529795,1736605842487,-518.55943633,0.00022191,3]
[348529796,1736605842496,-500.0,0.00022191,3]
[348529797,1736605842506,-500.0,0.00022191,3]
[348529798,1736605842515,-519.00593908,0.00022191,3]
[348529799,1736605842524,-508.25516135,0.00022191,3]
[348529800,1736605842533,-500.0,0.00022191,3]
[348529801,1736605842542,-503.81517771,0.00022191,3]
[348529802,1736605842551,-638.92135807,0.00022191,3]
[348529803,1736605842560,-500.0,0.00022191,3]
[348529804,1736605842570,-500.0,0.00022191,3]
[348529805,1736605842581,-500.0,0.00022191,3]
[348529806,1736605842591,-500.0,0.00022191,3]
[348529807,1736605842602,-501.31531326,0.00022191,3]
[348529808,1736605842611,-500.0,0.00022191,3]
[348529810,1736605842620,-500.0,0.00022191,3]
[348529812,1736605842629,-500.0,0.00022191,3]
[348529813,1736605842639,-510.7816709,0.00022191,3]
[348529815,1736605842648,-500.0,0.00022191,3]
[348529816,1736605842658,-500.0,0.00022191,3]
[348529817,1736605842668,-500.0,0.00022191,3]
[348529818,1736605842677,-512.65018563,0.00022191,3]
[348529821,1736605842686,-500.0,0.00022191,3]
[348529823,1736605842696,-500.0,0.00022191,3]
[348529826,1736605842708,-500.0,0.00022191,3]
[348529828,1736605842718,-458.03187508,0.00022191,3]
[348529830,1736605842728,-500.0,0.00022191,3]
[348529832,1736605842737,-500.0,0.00022191,3]
[348529833,1736605842747,-500.0,0.00022191,3]
[348529834,1736605842758,-384.4405875,0.00022191,3]
[348529835,1736605842767,-500.0,0.00022191,3]
[348529836,1736605842777,-500.0,0.00022191,3]
[348529838,1736605842786,-500.0,0.00022191,3]
[348529840,1736605842796,-500.0,0.00022191,3]
[348529842,1736605842805,-500.0,0.00022191,3]
[348529844,1736605842814,-728.72,0.00022191,3]
[348529845,1736605842824,-564.06,0.00022191,3]
[348529846,1736605842833,-500.0,0.00022191,3]
[348529847,1736605842842,-547.62,0.00022191,3]
[348529848,1736605842852,-500.0,0.00022191,3]
[348529849,1736605842862,-441.18711999,0.00022191,3]
[348529850,1736605842871,-500.0,0.00022191,3]
[348529852,1736605842880,-1150.66,0.00022191,3]
[348529854,1736605842890,-500.0,0.00022191,3]
[348529856,1736605842900,-500.0,0.00022191,3]
[348529858,1736605842909,-500.0,0.00022191,3]
[348529860,1736605842918,-500.0,0.00022191,3]
[348529861,1736605842927,-500.0,0.00022191,3]
[348529862,1736605842936,-500.0,0.00022191,3]
[348529863,1736605842945,-500.0,0.00022191,3]
[348529864,1736605842955,-500.69685086,0.00022191,3]
[348529865,1736605842967,-500.0,0.00022191,3]
[348529867,1736605842976,-243.51739507,0.00022191,3]
[348529869,1736605842985,-500.0,0.00022191,3]
[348529871,1736605842995,-500.74359497,0.00022191,3]
[348529873,1736605843004,-500.0,0.00022191,3]
[348529875,1736605843013,-484.172523,0.00022191,7]
[348529877,1736605843022,-484.172523,0.00022191,7]
[348529879,1736605843032,-484.172523,0.00022191,7]
[348529881,1736605843040,-484.172523,0.00022191,7]
[348529883,1736605843049,-500.0,0.00022191,3]
[348529885,1736605843059,-500.0,0.00022191,3]
[348529887,1736605843068,-484.172523,0.00022191,7]
[348529889,1736605843078,-484.172523,0.00022191,7]
[348529892,1736605843087,-484.172523,0.00022191,7]
[348529894,1736605843097,-484.172523,0.00022191,7]
[348529896,1736605843106,-500.0,0.00022191,3]
[348529898,1736605843115,-500.0,0.00022191,3]
[348529900,1736605843125,-500.0,0.00022191,3]
[348529902,1736605843134,-500.0,0.00022191,3]
[348529903,1736605843143,-500.0,0.00022191,3]
[348529905,1736605843152,-500.0,0.00022191,3]
[348529908,1736605843162,-500.0,0.00022191,3]
[348529910,1736605843171,-500.0,0.00022191,3]
[348529912,1736605843181,-500.0,0.00022191,3]
[348529914,1736605843190,-500.0,0.00022191,3]
[348529916,1736605843199,-575.04674579,0.00022191,3]
[348529918,1736605843208,-500.0,0.00022191,3]
[348529920,1736605843218,-274.20616059,0.00022191,3]
[348529922,1736605843228,-500.0,0.00022191,3]
[348529924,1736605843237,-500.0,0.00022191,3]
[348529926,1736605843246,-500.0,0.00022191,3]
[348529928,1736605843255,-500.0,0.00022191,3]
[348529930,1736605843266,-500.0,0.00022191,3]
[348529932,1736605843275,-500.0,0.00022191,3]
[348529934,1736605843284,-1157.52,0.00022191,3]
[348529936,1736605843293,-500.0,0.00022191,3]
[348529938,1736605843302,-500.0,0.00022191,3]
[348529940,1736605843311,-500.0,0.00022191,3]
[348529942,1736605843320,-870.24,0.00022191,3]
[348529944,1736605843329,-500.0,0.00022191,3]
[348529946,1736605843338,-500.0,0.00022191,3]
[348529948,1736605843348,-500.0,0.00022191,3]
[348529950,1736605843356,-858.05,0.00022191,3]
[348529953,1736605843365,-151.0,0.00022191,7]
[348529956,1736605843374,-151.0,0.00022191,7]
[348529958,1736605843383,-151.0,0.00022191,7]
[348529960,1736605843392,-151.0,0.00022191,7]
[348529962,1736605843401,-500.0,0.00022191,3]
[348529964,1736605843410,-500.0,0.00022191,3]
[348529966,1736605843419,-500.0,0.00022191,3]
[348529968,1736605843428,-500.0,0.00022191,3]
[348529970,1736605843437,-500.0,0.00022191,2]
[348529972,1736605843446,-500.0,0.00022191,3]
[348529974,1736605843456,-1925.45,0.00022191,3]
[348529976,1736605843464,-747.24,0.00022191,3]
[348529978,1736605843474,-500.0,0.00022191,3]
[348529980,1736605843483,-1100.0,0.00022191,30]
[348529982,1736605843492,-500.0,0.00022191,3]
[348529984,1736605843501,-500.0,0.00022191,3]
[348529986,1736605843511,-500.0,0.00022191,3]
[348529988,1736605843521,-500.0,0.00022191,3]
[348529990,1736605843530,-500.0,0.00022191,3]
[348529992,1736605843539,-500.0,0.00022191,3]
[348529994,1736605843548,-223.334483,0.00022191,7]
[348529996,1736605843558,-500.0,0.00022191,3]
[348529998,1736605843567,-500.0,0.00022191,3]
[348530000,1736605843576,-390.15428783,0.00022191,3]
[348530002,1736605843585,-503.13286571,0.00022191,3]
[348530004,1736605843594,-500.0,0.00022191,3]
[348530006,1736605843603,-500.86385133,0.00022191,3]
[348530008,1736605843612,-494.13695306,0.00022191,3]
[348530010,1736605843622,-507.8373543,0.00022191,3]
[348530012,1736605843631,-508.90115013,0.00022191,3]
[348530014,1736605843640,-616.96025997,0.00022191,3]
[348530016,1736605843649,-500.0,0.00022191,3]
[348530018,1736605843657,-500.0,0.00022191,3]
[348530020,1736605843666,-500.0,0.00022191,3]
[348530022,1736605843675,-540.06,0.00022191,3]
[348530024,1736605843685,-785.25,0.00022191,3]
[348530026,1736605843694,-500.0,0.00022191,3]
[348530028,1736605843704,-500.0,0.00022191,3]
[348530030,1736605843714,-500.0,0.00022191,3]
[348530032,1736605843723,-500.0,0.00022191,3]
[348530034,1736605843732,-525.08,0.00022191,3]
[348530036,1736605843742,-500.0,0.00022191,3]
[348530038,1736605843751,-500.0,0.00022191,3]
[348530040,1736605843760,-500.0,0.00022191,3]
[348530042,1736605843769,-500.0,0.00022191,3]
[348530044,1736605843778,-500.0,0.00022191,3]
[348530046,1736605843787,-500.0,0.00022191,3]
[348530048,1736605843796,-500.0,0.00022191,3]
[348530050,1736605843805,-500.0,0.00022191,3]
[348530052,1736605843814,-500.0,0.00022191,3]
[348530054,1736605843824,-500.0,0.00022191,3]
[348530056,1736605843833,-502.92891961,0.00022191,3]
[348530058,1736605843842,-500.0,0.00022191,3]
[348530060,1736605843852,-500.0,0.00022191,3]
[348530063,1736605843867,-500.0,0.00022191,3]
[348530065,1736605843876,-154.12737719,0.00022191,3]
[348530067,1736605843885,-500.0,0.00022191,3]
[348530068,1736605843894,-500.0,0.00022191,3]
[348530071,1736605843904,-500.0,0.00022191,3]
[348530072,1736605843913,-500.0,0.00022191,3]
[348530073,1736605843922,-505.49408059,0.00022191,3]
[348530075,1736605843932,-506.72061992,0.00022191,3]
[348530077,1736605843941,-505.40204846,0.00022191,3]
[348530078,1736605843950,-500.0,0.00022191,3]
[348530079,1736605843960,-500.0,0.00022191,3]
[348530080,1736605843971,-500.0,0.00022191,3]
[348530081,1736605843981,-500.0,0.00022191,3]
[348530082,1736605843990,-500.0,0.00022191,3]
[348530083,1736605843999,-500.0,0.00022191,3]
[348530084,1736605844008,-500.0,0.00022191,3]
[348530085,1736605844017,-500.0,0.00022191,3]
[348530086,1736605844027,-500.0,0.00022191,3]
[348530087,1736605844038,-500.0,0.00022191,3]
[348530088,1736605844049,-500.0,0.00022191,3]
[348530089,1736605844059,-500.0,0.00022191,3]
[348530090,1736605844068,-500.0,0.00022191,3]